Cogmind - Beta 15 @@@ ROGUE MODE // 2025.08.13 @ 14:32:33 Player: shapeshifter Result: Destroyed by P-80 Master with Gamma Rifle Performance ------------- Evolutions (7) 3500 Regions Visited (18) 3600 Robots Destroyed (288) 1440 Value Destroyed (13898) 13898 Prototype IDs (67) 1340 Alien Tech Used (0) 0 Bonus (14198) 14198 TOTAL SCORE: 37976 Bonus ------- High Alert Combat Kills 788 Follower Combat Kills 1672 Registered with UFD 300 Met Optimus in HQ 500 Met Warlord at Base 500 MAIN.C Attacked Warlord 500 Warlord Defense Kills 6938 Built Enhanced Grunts 300 Met R17 at Cetus 500 Met R17 at Research 2000 Scanned by Researcher 500 Friendly Fire -300 Cogmind --------- Core Integrity 0/1300 Matter 253/300 Energy 98/100 System Corruption 44% Temperature Cool (0) Movement Core (50) Location -3/Testing Parts ------- > --- POWER (2) -------- (None) > --- PROPULSION (6) --- (None) > --- UTILITY (10) ----- Enhanced Optical Array Improved Signal Interpreter System Shield A0-MCA's Component Scanner > --- WEAPON (3) ------- (None) > --- INVENTORY (5) ---- Flexi-carbon Leg Huge Storage Unit Energy Well (55) Ionic Axe Enhanced Force Lance Peak State ------------ > --- POWER ------------ Quantum Reactor Quantum Reactor > --- PROPULSION ------- Centrium Heavy Treads Centrium Heavy Treads Centrium Heavy Treads > --- UTILITY ---------- Advanced Cooling System High-capacity Storage Unit Improved Signal Interpreter Advanced Targeting Computer Centrium Medium Armor Plating Centrium Medium Armor Plating Improved Point Defense System Hacking Suite A0-MCA's Component Scanner > --- WEAPON ----------- Quantum Rifle Quantum Rifle > --- INVENTORY -------- Quantum Reactor Centrium Heavy Treads High-capacity Storage Unit Machine Analyzer Hardened Heavy Armor Plating Advanced Variable Charge Gun Advanced Variable Charge Gun Vortex Rifle Vortex Rifle Improved Proton Missile Launcher Remote Datajack RU-N14's Throwing Claymores v3 RU-N14's Throwing Claymores v3 RU-N14's Throwing Claymores v3 RU-N14's Throwing Claymores v3 RU-N14's Throwing Claymores v3 RU-N14's Throwing Claymores v3 Phasing Sabre [Rating: 152] Favorites ----------- Power Quantum Reactor Engine Improved Ion Engine Power Core Neutrino Core Reactor Quantum Reactor Propulsion Armored Leg Treads Centrium Heavy Treads Leg Armored Leg Wheel Armored Wheel Utility High-capacity Storage Unit Device Improved Sensor Array Storage High-capacity Storage Unit Processor Improved Signal Interpreter Hackware Improved System Shield Protection Centrium Medium Armor Plating Weapon Gauss Rifle Energy Gun Field Laser Energy Cannon Phase Cannon Ballistic Gun Gauss Rifle Ballistic Cannon Flak Cannon Launcher Improved Proton Missile Launcher Special Weapon RU-N14's Throwing Claymores v3 Slashing Weapon Phasing Sabre Piercing Weapon Enhanced Force Lance Build | -11 -10 -9 -8 -8 -8 -8 -6 -5 -5 -5 -5 -4 -4 -4 -4 -3 -3 -3 ------- Run | Yrd Mat Mat Mat Sto Rec Scr Fac Fac Ext Cet Arc Fac Upp Upp War Pro Res Tes Slots Evolved 14 | . . 2 2 . . . 4 2 . . . 2 . . . . 2 . Power 1 | . . . . . . . . 1 . . . . . . . . . . Propulsion 4 | . . . 1 . . . 1 1 . . . 1 . . . . . . Utility 8 | . . 2 1 . . . 3 . . . . 1 . . . . 1 . Weapon 1 | . . . . . . . . . . . . . . . . . 1 . Parts Attached 211 | 7 . 17 12 20 . 6 36 11 25 9 7 4 3 2 8 8 14 22 Power 30 | 1 . 3 2 2 . 1 5 3 4 2 2 . . . . . 2 3 Engine 12 | 1 . 3 1 2 . . 4 . 1 . . . . . . . . . Core 9 | . . . 1 . . 1 1 3 3 . . . . . . . . . Reactor 9 | . . . . . . . . . . 2 2 . . . . . 2 3 Propulsion 61 | 2 . 2 3 8 . 3 11 3 10 2 1 1 . 1 . . 9 5 Treads 15 | 2 . . . 5 . . 3 . . 2 1 1 . 1 . . . . Leg 37 | . . . . 3 . . 8 3 10 . . . . . . . 9 4 Wheel 9 | . . 2 3 . . 3 . . . . . . . . . . . 1 Hover . | . . . . . . . . . . . . . . . . . . . Flight . | . . . . . . . . . . . . . . . . . . . Utility 63 | 2 . 8 4 5 . 2 13 2 6 3 1 2 1 1 1 3 3 6 Device 19 | 1 . 2 . 2 . . 4 1 3 1 . . 1 1 . . . 3 Storage 5 | 1 . . 2 . . 1 . . . . . . . . . . . 1 Processor 11 | . . . 1 . . . 5 1 1 . . . . . . 2 1 . Hackware 5 | . . . . 1 . . 1 . . . 1 1 . . . . 1 . Protection 23 | . . 6 1 2 . 1 3 . 2 2 . 1 . . 1 1 1 2 Artifact . | . . . . . . . . . . . . . . . . . . . Weapon 57 | 2 . 4 3 5 . . 7 3 5 2 3 1 2 . 7 5 . 8 Energy Gun 16 | . . 2 . 1 . . 1 . 3 . . 1 1 . . 4 . 3 Energy Cannon 4 | . . . . . . . 2 1 . . . . . . . . . 1 Ballistic Gun 17 | 2 . 2 3 2 . . 1 1 2 . 3 . . . . . . 1 Ballistic Cannon 2 | . . . . 1 . . . . . . . . . . . . . 1 Launcher 9 | . . . . 1 . . 3 1 . 2 . . 1 . 1 . . . Special Weapon 6 | . . . . . . . . . . . . . . . 5 1 . . Impact Weapon . | . . . . . . . . . . . . . . . . . . . Slashing Weapon 2 | . . . . . . . . . . . . . . . 1 . . 1 Piercing Weapon 1 | . . . . . . . . . . . . . . . . . . 1 Special Melee Weapon . | . . . . . . . . . . . . . . . . . . . Unidentified Prototypes 5 | . . 1 1 2 . . 1 . . . . . . . . . . . Corrupted Parts 17 | . . . . . . . 1 . . 4 5 1 . 1 . 3 . 2 System Corruption 131 | . . . . . . . 7 . . 37 45 10 . 1 . 19 . 12 Parts Lost 93 | . . 5 6 2 . . 21 5 9 . . . 1 2 3 4 . 35 Power 21 | . . 1 1 . . . 6 2 3 . . . . 1 1 1 . 5 Propulsion 24 | . . . 2 . . . 2 1 4 . . . . . 1 2 . 12 Utility 28 | . . 3 1 1 . . 7 1 2 . . . 1 . 1 1 . 10 Weapon 20 | . . 1 2 1 . . 6 1 . . . . . 1 . . . 8 Highest Loss Streak 15 | . . 3 3 1 . . 4 2 3 . . . 1 2 2 2 . 15 To Critical Strikes 6 | . . . . . . . . 1 . . . . . . 1 1 . 3 Average Backups 15 | 5 7 7 13 19 19 18 16 16 18 15 17 17 17 15 16 12 15 14 Power . | . 1 . . . . . . . . 1 2 2 2 1 1 . . 1 Propulsion 2 | 3 3 1 . . . 1 6 5 5 2 2 1 1 . . . . . Utility 5 | . 1 2 8 12 12 8 4 3 2 3 3 5 7 6 4 3 5 5 Weapon 5 | 1 1 1 3 5 6 6 3 6 7 7 7 7 6 5 9 7 7 5 Tool/Special . | . . . . . . . . . . . . . . . . . . . Unused Backups 61 | . 2 6 1 10 1 12 3 . 8 4 1 2 . . 3 . 1 7 Power 3 | . . . . . . . 1 . 1 . . . . . . . . 1 Propulsion 10 | . 2 2 . . . 1 . . 3 . 1 . . . . . . 1 Utility 28 | . . 2 1 6 1 6 . . 4 1 . 1 . . 3 . 1 2 Weapon 13 | . . 1 . 3 . 3 1 . . 3 . . . . . . . 2 Tool/Special 7 | . . 1 . 1 . 2 1 . . . . 1 . . . . . 1 Average Slot Usage (%) 90 | . 100 89 96 94 93 98 95 88 97 98 88 83 82 83 81 68 78 80 Engine 3 | . 14 10 5 8 9 7 2 . . . . . . . . . . . Core 1 | . . . 3 . . 1 2 5 9 6 . . . . . . . . Reactor 3 | . . . . . . . . . . 4 11 10 10 9 9 5 8 6 Treads 9 | . 28 7 . 11 27 25 1 . . 1 14 14 15 15 14 10 2 . Leg 9 | . . . . 2 . . 24 28 28 25 1 . . . . . 11 17 Wheel 3 | . . 14 26 9 . 1 . . . . . . . . . . . . Device 9 | . 14 14 17 14 9 9 13 4 5 5 5 5 5 9 10 5 4 3 Storage 6 | . 14 11 9 9 9 9 6 5 5 5 5 5 5 5 5 5 4 4 Processor 14 | . . . 8 9 9 9 14 24 24 23 23 15 15 15 15 21 23 20 Hackware 5 | . . . . 3 9 9 6 5 5 5 5 9 8 5 5 5 5 8 Protection 7 | . . 9 8 9 9 9 7 . 3 5 5 10 10 10 9 4 4 3 Energy Gun 4 | . . 2 . 4 5 8 1 5 4 . . . 1 4 6 8 10 6 Ballistic Gun 6 | . 28 19 16 8 5 8 3 . 4 . 10 9 5 5 . . . . Peak Build Rating 152 | 7 8 16 27 32 29 35 73 82 89 119 128 149 149 149 152 131 132 138 Average Rating 75 | 5 7 12 24 27 26 29 62 76 85 96 126 148 144 146 144 105 108 109 On Entrance 72 | . 7 7 16 16 29 23 35 61 82 81 119 123 148 149 132 127 87 131 Naked Turns . | . . . . . . . . . . . . . . . . . . . Heaviest Build 123 | 14 14 22 60 65 58 58 73 75 81 105 105 108 110 111 123 115 94 111 Greatest Support 240 | 40 40 40 36 60 60 60 88 80 85 160 188 240 240 240 240 240 145 145 Greatest Overweight (x) 7 | 2 . . 2 3 . 7 7 1 1 1 . . . . . . 1 2 Average Overweight (x) . | . . . . 1 . . . . . . . . . . . . . . Largest Inventory Capacity 20 | 8 8 8 20 20 20 20 20 20 20 20 20 20 20 20 20 20 20 20 Average Capacity 18 | 7 8 8 18 20 20 20 20 20 20 20 20 20 20 20 20 20 20 18 Most Carried 20 | 8 8 8 19 20 20 20 20 19 20 20 20 20 20 19 20 14 20 20 Average Carried 16 | 5 7 7 13 19 19 19 16 16 18 17 19 19 19 16 18 12 15 15 Final Capacity 20 | 8 8 8 20 20 20 20 20 20 20 20 20 20 20 20 20 20 20 20 Final Carried 20 | 7 7 8 16 20 20 19 14 17 15 16 19 20 19 17 19 11 20 19 Class Distribution -------------------- 48% | Scavenger-Mutant 28% | Mutant 7% | Commander-Mutant 7% | Infiltrator-Mutant 3% | Skirmisher Dominant Class ---------------- Mutant | -10/Materials Mutant | -9/Materials Infiltrator-Mutant | -8/Materials Mutant | -8/Storage Scavenger-Mutant | -8/Recycling Scavenger-Mutant | -8/Scraptown Mutant | -6/Factory Mutant | -5/Factory Commander-Mutant | -5/Extension Scavenger-Mutant | -5/Cetus Commander-Mutant | -5/Archives Scavenger-Mutant | -4/Factory Scavenger-Mutant | -4/Upper Caves Scavenger-Mutant | -4/Upper Caves Scavenger-Mutant | -4/Warlord Scavenger-Mutant | -3/Proximity Caves Scavenger-Mutant | -3/Research Scavenger-Mutant | -3/Testing Resources | -11 -10 -9 -8 -8 -8 -8 -6 -5 -5 -5 -5 -4 -4 -4 -4 -3 -3 -3 ----------- Run | Yrd Mat Mat Mat Sto Rec Scr Fac Fac Ext Cet Arc Fac Upp Upp War Pro Res Tes Matter Collected 6189 | 329 . 635 778 677 . 180 930 244 502 151 192 182 256 355 72 199 190 317 Remotely . | . . . . . . . . . . . . . . . . . . . Salvage Created 10937 | 156 . 976 1180 767 . . 2439 617 640 623 254 547 263 539 817 293 . 826 Parts 483 | 20 . 54 71 40 . . 102 20 31 22 13 21 10 19 22 6 . 32 Haulers Intercepted 8 | . . 2 2 3 . . 1 . . . . . . . . . . . Recyclers Shooed 2 | . . . 2 . . . . . . . . . . . . . . . Parts Field Recycled . | . . . . . . . . . . . . . . . . . . . Retrieved Matter . | . . . . . . . . . . . . . . . . . . . Parts Self-Destructed 26 | . . . . . . . . . . . . . 7 14 . 5 . . Prevented 16 | . . . . . . . . . . . . . 3 13 . . . . Kills | -11 -10 -9 -8 -8 -8 -8 -6 -5 -5 -5 -5 -4 -4 -4 -4 -3 -3 -3 ------- Run | Yrd Mat Mat Mat Sto Rec Scr Fac Fac Ext Cet Arc Fac Upp Upp War Pro Res Tes Combat Hostiles Destroyed 236 | . . 22 24 17 . . 42 12 10 7 2 9 6 7 55 9 . 14 Melee 2 | . . . . 1 . . . . . . . . . . 1 . . . Guns 114 | . . 22 24 9 . . 12 1 9 . 2 9 4 6 2 5 . 9 Cannons 27 | . . . . 6 . . 14 . . . . . . . 2 2 . 3 AOE 76 | . . . . . . . 15 5 1 . . . 1 1 49 2 . 2 Classes Destroyed 21 | 2 . 6 1 1 . . 4 . 1 . . . . . 4 . . 2 Worker 7 | . . 1 . 1 . . 4 . . . . . . . . . . 1 Builder 7 | . . . . . . . 4 . 1 . . . . . . . . 2 Tunneler 5 | 5 . . . . . . . . . . . . . . . . . . Hauler 8 | . . 2 2 3 . . 1 . . . . . . . . . . . Recycler 4 | 1 . . 2 . . . 1 . . . . . . . . . . . Mechanic 3 | . . . . . . . 1 . . . . . . . 1 . . 1 Operator 3 | . . . . . . . . . 1 . 2 . . . . . . . Watcher 13 | . . 3 3 1 . . 3 . . 2 . 1 . . . . . . Swarmer 41 | . . 6 11 5 . . 4 4 . . . . 4 . 5 2 . . Saboteur 3 | . . . . . . . . . . . . . . . 3 . . . Grunt 98 | . . 9 7 3 . . 30 3 6 . . 2 2 5 21 3 . 7 Brawler 10 | . . . . . . . 1 . . . . 1 . 1 7 . . . Duelist 5 | . . . . 1 . . . . . . . . . . 4 . . . Protector 5 | . . . . . . . . . . . . . . . 5 . . . Researcher 2 | . . . . . . . . . . . . . . . . . . 2 Sentry 27 | . . 7 3 7 . . 3 1 1 . 2 2 . . . 1 . . Hunter 19 | . . . 3 1 . . 2 2 3 . . . . 1 2 2 . 3 Programmer 17 | . . . . . . . 2 2 . . . 4 . . 5 1 . 3 Cetus Guard 7 | . . . . . . . . . . 7 . . . . . . . . Striker 2 | . . . . . . . . . . . . . . . 2 . . . Executioner 1 | . . . . . . . . . . . . . . . 1 . . . Alpha 7 1 | . . . . . . . . . . . . . . . . . . 1 Best Kill Streak 37 | 3 . 6 5 5 . . 10 4 3 5 2 4 4 5 37 3 . 8 Combat Bots Only 37 | . . 6 4 4 . . 7 4 3 4 2 3 4 5 37 3 . 2 Max Kills in Single Turn 7 | 1 . 2 1 1 . . 4 3 2 2 1 2 1 1 7 2 . 2 Gunslinging 1 | . . 1 . . . . . . . . . 1 . . . . . . Exploded 6 | . . . . . . . 4 3 1 . . . 1 1 6 1 . 1 Melee 1 | . . . . 1 . . . . . . . . . . 1 . . . Uniques/NPCs Destroyed . | . . . . . . . . . . . . . . . . . . . Combat | -11 -10 -9 -8 -8 -8 -8 -6 -5 -5 -5 -5 -4 -4 -4 -4 -3 -3 -3 -------- Run | Yrd Mat Mat Mat Sto Rec Scr Fac Fac Ext Cet Arc Fac Upp Upp War Pro Res Tes Hostile Shots Fired 2038 | . . 135 140 113 . . 406 98 156 22 3 55 41 164 147 67 . 491 Missed 612 | . . 36 41 28 . . 120 35 45 10 . 15 13 56 53 22 . 138 Hits 1426 | . . 99 99 85 . . 286 63 111 12 3 40 28 108 94 45 . 353 Melee 5 | . . . . 3 . . . . . . . . . . 2 . . . Projectile 1421 | . . 99 99 82 . . 286 63 111 12 3 40 28 108 92 45 . 353 AOE 4 | . . . . . . . . . 4 . . . . . . . . . Critical Strikes 66 | . . 3 1 4 . . 6 5 3 1 . 5 1 4 4 2 . 27 Part Disruptions 2 | . . . . . . . . . . . . 1 . . . . . 1 Damage Taken 24195 | . . 1261 1383 1221 . . 4218 1118 2214 184 78 1285 470 1729 1893 859 . 6282 Core 3409 | . . 232 338 140 . . 502 164 178 29 . 202 32 119 80 87 . 1306 Absorbed by Shields 999 | . . . . . . . . . 146 177 . . . . . . . 676 Redirected to Shielding 102 | . . . . . . . 102 . . . . . . . . . . . Ignored by Resistances 18 | . . . . . . . . . . . . . . 18 . . . . Regen/Repaired (Parts) 472 | . . . . . . . . . . . . . . . 472 . . . Core Remaining (%) 58 | 100 100 42 . . . 13 40 . . . 62 . . . . 54 . . Volleys Fired 854 | 15 1 108 110 85 . . 182 43 50 6 14 39 20 21 39 25 4 92 Largest 2 | 2 2 2 2 2 . . 2 2 2 2 2 2 2 2 2 2 2 2 Hottest 174 | 40 40 79 53 91 . . 150 173 114 86 70 129 129 129 94 169 160 174 Shots Fired 1321 | 30 2 204 195 126 . . 222 56 101 13 24 66 25 36 40 35 8 138 Gun 1078 | 30 2 204 195 93 . . 108 34 101 . 24 66 21 31 11 32 8 118 Cannon 155 | . . . . 33 . . 92 13 . . . . . . . . . 17 Launcher 64 | . . . . . . . 22 9 . 13 . . 4 5 11 . . . Special 24 | . . . . . . . . . . . . . . . 18 3 . 3 Kinetic 774 | 30 2 179 195 92 . . 74 . 51 . 24 65 20 20 . . . 22 Thermal 407 | . . 25 . 34 . . 121 47 46 . . 1 1 11 11 19 8 83 Explosive 39 | . . . . . . . 15 . . . . . . . 18 3 . 3 Electromagnetic 66 | . . . . . . . 12 9 4 13 . . 4 5 11 . . 8 Entropic 35 | . . . . . . . . . . . . . . . . 13 . 22 Robot Hit Streak 19 | 6 . 18 6 14 . . 12 10 19 6 10 14 4 10 11 9 7 13 Robot Miss Streak 6 | 2 2 5 6 5 . . 3 3 2 1 2 2 3 2 2 2 1 2 Penetration Max 2 | . . . . 1 . . . . 1 . 1 . . . . . . 2 Secondary Targets 17 | . . 3 6 2 . . . . 2 . . 2 . 1 . 1 . . Max Gunslinging Chain 1 | . . 1 1 1 . . . . 1 . . 1 . 1 . 1 . . Shots Hit Robots 880 | 21 . 144 106 94 . . 144 38 74 2 18 41 13 25 32 22 7 99 Core Hits 579 | 8 . 49 51 51 . . 110 20 37 18 10 20 8 19 121 14 1 42 Critical Kills 13 | . . 1 . 1 . . . . 1 . 3 5 1 1 . . . . Critical Parts Destroyed 20 | . . 2 1 2 . . . . . . 2 4 . 3 . . . 6 Critical Strikes 59 | . . 6 1 4 . . 3 4 5 . 5 9 1 4 5 3 . 9 Burn 16 | . . 3 . 1 . . 3 4 3 . . . . . . 2 . . Destroy 36 | . . 3 1 3 . . . . 2 . 5 9 1 4 . . . 8 Sever 6 | . . . . . . . . . . . . . . . 5 1 . . Detonate 1 | . . . . . . . . . . . . . . . . . . 1 Melee Attacks 14 | . . . . . . . . . . . . . . . 2 . . 12 Impact . | . . . . . . . . . . . . . . . . . . . Slashing 4 | . . . . . . . . . . . . . . . 2 . . 2 Piercing 10 | . . . . . . . . . . . . . . . . . . 10 Sneak Attacks . | . . . . . . . . . . . . . . . . . . . Combat Hostiles . | . . . . . . . . . . . . . . . . . . . Follow-up Attacks . | . . . . . . . . . . . . . . . . . . . Damage Inflicted 40783 | 218 . 1955 1844 1784 . . 6785 1335 2017 1231 576 1204 470 977 13397 1758 207 5025 Guns 16221 | 218 . 1933 1823 1193 . . 1725 638 1776 . 563 1204 272 570 244 771 207 3084 Cannons 3561 | . . . . 578 . . 1964 261 . . . . . . . . . 758 Explosions 19816 | . . . . . . . 3091 436 230 1231 . . 198 407 12378 826 . 1019 Melee 98 | . . . . . . . . . . . . . . . 46 . . 52 Ramming 103 | . . 22 21 13 . . 5 . 11 . 13 . . . . . . 18 Kinetic 10013 | 218 . 1693 1823 1288 . . 1178 . 853 . 563 1176 272 401 . . . 548 Thermal 9410 | . . 240 . 483 . . 3053 899 1061 102 . 28 . 169 588 310 207 2270 Explosive 15212 | . . . . . . . 1974 . . . . . . . 11658 826 . 754 Electromagnetic 3526 | . . . . . . . 575 436 92 1129 . . 198 407 376 . . 313 Impact . | . . . . . . . . . . . . . . . . . . . Slashing 1030 | . . . . . . . . . . . . . . . 775 161 . 94 Piercing 52 | . . . . . . . . . . . . . . . . . . 52 Entropic 1437 | . . . . . . . . . . . . . . . . 461 . 976 Highest Corruption 87 | . . 1 . 2 2 . 11 5 5 42 87 16 16 17 17 30 . 44 Average Corruption 12 | . . 1 . 1 2 . 7 4 5 16 63 11 16 16 10 13 . 20 Corruption Purged . | . . . . . . . . . . . . . . . . . . . Corruption Blocked . | . . . . . . . . . . . . . . . . . . . Effects 253 | . . . . 6 3 . 40 3 26 13 25 37 18 29 6 19 . 28 Message Errors 57 | . . . . . 1 . 7 1 13 3 2 6 6 6 1 7 . 4 Matter Fused 57 | . . . . 4 1 . 13 1 5 1 6 6 1 9 . 3 . 7 Heat Flow Errors 27 | . . . . . . . 5 . 1 . 5 6 1 . 4 3 . 2 Energy Discharges 38 | . . . . 2 1 . 3 . 3 1 3 7 4 5 . . . 9 Parts Rejected 5 | . . . . . . . . . 1 . . . 1 2 . 1 . . Parts Fused 1 | . . . . . . . . . . . . . 1 . . . . . Data Loss (minor) 21 | . . . . . . . 3 1 . 4 3 4 2 2 1 1 . . Data Loss (major) 13 | . . . . . . . 2 . . 1 . 6 . 2 . 1 . 1 Misfires 13 | . . . . . . . 3 . 2 2 . . 1 2 . 3 . . Alerts 3 | . . . . . . . . . 1 . 1 1 . . . . . . Misdirections 3 | . . . . . . . 1 . . . 1 . . . . . . 1 Weapon Failures 15 | . . . . . . . 3 . . 1 4 1 1 1 . . . 4 Overload Shots . | . . . . . . . . . . . . . . . . . . . Overflow Damage 785 | . . . . . . . 246 . . 11 . . . . 218 42 . 268 Projectiles 146 | . . . . . . . 24 . . . . . . . 39 . . 83 Explosions 639 | . . . . . . . 222 . . 11 . . . . 179 42 . 185 Melee . | . . . . . . . . . . . . . . . . . . . Knockbacks 10 | . . . . 6 . . . . . . . . . . . . . 4 Impact . | . . . . . . . . . . . . . . . . . . . Kinetic 9 | . . . . 6 . . . . . . . . . . . . . 3 Secondary 1 | . . . . . . . . . . . . . . . . . . 1 Self-Inflicted Damage 377 | . . 11 10 6 . . 192 . 59 25 . . . 20 . . . 54 Shots 10 | . . . . . . . 5 . 1 1 . . . 2 . . . 1 Rammed 5 | . . 1 2 1 . . . . . . 1 . . . . . . . Targets Rammed 8 | . . 1 2 1 . . 1 . 1 . 1 . . . . . . 1 Kicked 3 | . . . . . . . 1 . 1 . . . . . . . . 1 Crushed . | . . . . . . . . . . . . . . . . . . . Highest Temperature 590 | . . 180 157 313 . . 284 152 124 . 233 211 214 18 221 224 . 590 Average Temperature 64 | . . 47 28 39 . . 74 68 28 . 90 81 97 9 46 62 . 139 Received Heat Transfer 4267 | . . 492 315 288 . . 1470 117 284 . . 112 42 364 187 36 . 560 Effects 9 | . . . . . . . 2 . . . . . 1 . . . . 6 Shutdowns 1 | . . . . . . . . . . . . . . . . . . 1 Energy Bleed 2 | . . . . . . . . . . . . . 1 . . . . 1 Interference 5 | . . . . . . . 2 . . . . . . . . . . 3 Damage (minor) 1 | . . . . . . . . . . . . . . . . . . 1 Siege Activations . | . . . . . . . . . . . . . . . . . . . Martial Activations . | . . . . . . . . . . . . . . . . . . . Shielding Activations . | . . . . . . . . . . . . . . . . . . . Robots Disrupted . | . . . . . . . . . . . . . . . . . . . Combat Hostiles . | . . . . . . . . . . . . . . . . . . . Robots Corrupted 12 | . . . . . . . . 2 . 7 . . 1 . 1 . . 1 Combat Hostiles 11 | . . . . . . . . 2 . 7 . . 1 . 1 . . . Parts Fried 23 | . . . . . . . 3 2 1 10 . . 1 2 3 . . 1 Impact Corruptions 1 | . . . . . . . . . . . . . . . . . . 1 Robots Melted 6 | . . . . 1 . . 1 4 . . . . . . . . . . Combat Hostiles 6 | . . . . 1 . . 1 4 . . . . . . . . . . Parts Melted 20 | . . . . 1 . . 2 10 3 . . . . . 1 1 . 2 Heat Transferred 14440 | . . 740 . 1110 . . 4257 2150 2001 150 . 37 . 222 546 672 259 2296 Parts Sabotaged . | . . . . . . . . . . . . . . . . . . . Parts Stolen . | . . . . . . . . . . . . . . . . . . . Parts Stripped . | . . . . . . . . . . . . . . . . . . . Power Chain Reactions 7 | . . . . . . . 2 1 1 1 . . . . 2 . . . Alert | -11 -10 -9 -8 -8 -8 -8 -6 -5 -5 -5 -5 -4 -4 -4 -4 -3 -3 -3 ------- Run | Yrd Mat Mat Mat Sto Rec Scr Fac Fac Ext Cet Arc Fac Upp Upp War Pro Res Tes Maximum Alert Level 4 | . . 1 1 1 . . 3 1 2 2 1 4 . . . . . . Low Security (%) 57 | 100 100 86 61 90 100 . 27 . 58 . 33 22 . . . . 100 100 Level 1 24 | . . 13 38 9 . . 23 100 36 67 66 3 . . . . . . Level 2 9 | . . . . . . . 34 . 5 32 . 8 . . . . . . Level 3 4 | . . . . . . . 13 . . . . 25 . . . . . . Level 4 3 | . . . . . . . . . . . . 40 . . . . . . Level 5 . | . . . . . . . . . . . . . . . . . . . High Security . | . . . . . . . . . . . . . . . . . . . Max Security . | . . . . . . . . . . . . . . . . . . . Peak Influence 1181 | 10 30 255 386 229 72 . 824 398 541 462 256 1181 . . . . 26 143 Initial 398 | . . . 104 154 72 . . 398 166 215 142 58 . . . . . . Average 235 | 1 5 73 182 145 43 . 334 341 211 355 208 762 . . . . 1 36 Influence Increases 9239 | 30 30 669 684 509 . . 1424 310 1223 347 207 1579 155 165 1045 210 28 624 Destroy 0b10 Robot/C 5400 | . . 440 480 340 . . 840 240 500 160 80 560 120 140 1000 180 . 320 Destroy 0b10 Robot/NC 300 | 30 . 30 35 25 . . 70 . 10 10 10 30 . . 30 . . 20 Destroy Leader 906 | . . 130 120 98 . . 158 60 100 . . 130 20 10 . 30 . 50 Allied During Kill 1147 | . . . . . . . . . 471 131 90 455 . . . . . . Successful Hack 249 | . 30 53 30 . . . . . 30 . . 28 . . . . 26 52 Select Force Hacks 30 | . . . . . . . . . . . . 30 . . . . . . Disable Machine 540 | . . 15 15 45 . . 180 . 30 15 15 180 . . . . . 45 Destroy Structure 442 | . . 1 4 1 . . 116 10 22 16 12 166 . . . . 2 92 Lose Combat Pursuer 225 | . . . . . . . 60 . 60 15 . . 15 15 15 . . 45 Influence Decreases 9163 | 30 30 420 567 690 173 12 610 784 1178 376 394 585 647 419 495 1177 28 548 Entered New Map 3511 | . . . 145 212 113 12 . 416 174 170 214 111 431 129 417 967 . . Time Decay 4293 | 30 30 390 362 458 60 . 400 318 474 206 160 414 206 270 48 180 28 259 Lost Part 839 | . . 30 60 20 . . 210 50 90 . . . 10 20 30 30 . 289 Lost Ally 520 | . . . . . . . . . 440 . 20 60 . . . . . . Squads Dispatched 53 | . 1 4 6 . . . 16 4 5 . . 7 . . . . 4 6 Investigation 21 | . . 3 4 . . . 3 3 1 . . 3 . . . . 3 1 Extermination 6 | . . . . . . . 2 1 . . . 1 . . . . . 2 Reinforcement 18 | . 1 1 1 . . . 7 . 3 . . 1 . . . . 1 3 Assault 3 | . . . . . . . 1 . 1 . . 1 . . . . . . Garrison 5 | . . . 1 . . . 3 . . . . 1 . . . . . . Intercept . | . . . . . . . . . . . . . . . . . . . Searches Triggered . | . . . . . . . . . . . . . . . . . . . Construction Impeded 5 | . . . . . . . 3 . 1 . . . . . . . . 1 Haulers Reinforced 2 | . . . . . . . 2 . . . . . . . . . . . Active Scanning Responses . | . . . . . . . . . . . . . . . . . . . Cargo Convoy Interrupts . | . . . . . . . . . . . . . . . . . . . Stealth | -11 -10 -9 -8 -8 -8 -8 -6 -5 -5 -5 -5 -4 -4 -4 -4 -3 -3 -3 --------- Run | Yrd Mat Mat Mat Sto Rec Scr Fac Fac Ext Cet Arc Fac Upp Upp War Pro Res Tes Distress Signals 22 | . 1 2 2 2 . . 1 . 3 2 . 4 . . . . 5 . Communications Jammed . | . . . . . . . . . . . . . . . . . . . Distress Signals . | . . . . . . . . . . . . . . . . . . . Times Spotted 379 | . 1 33 44 27 . . 57 12 37 7 17 25 7 11 47 9 13 32 Peak Tracking Total 16 | . 2 5 5 5 . . 6 4 8 5 1 8 4 6 16 3 5 9 Tactical Retreats 20 | . . . 3 4 . . 3 . 3 1 . . 1 1 1 . . 3 Traps | -11 -10 -9 -8 -8 -8 -8 -6 -5 -5 -5 -5 -4 -4 -4 -4 -3 -3 -3 ------- Run | Yrd Mat Mat Mat Sto Rec Scr Fac Fac Ext Cet Arc Fac Upp Upp War Pro Res Tes Traps Triggered 12 | . . 1 2 3 . . . 2 2 . . 1 . . . . . 1 Indirectly . | . . . . . . . . . . . . . . . . . . . Trap Hack Attempts . | . . . . . . . . . . . . . . . . . . . Triggered . | . . . . . . . . . . . . . . . . . . . Disarmed . | . . . . . . . . . . . . . . . . . . . Reprogrammed . | . . . . . . . . . . . . . . . . . . . Reused . | . . . . . . . . . . . . . . . . . . . Traps Extracted . | . . . . . . . . . . . . . . . . . . . Installed . | . . . . . . . . . . . . . . . . . . . Triggered . | . . . . . . . . . . . . . . . . . . . Machines | -11 -10 -9 -8 -8 -8 -8 -6 -5 -5 -5 -5 -4 -4 -4 -4 -3 -3 -3 ---------- Run | Yrd Mat Mat Mat Sto Rec Scr Fac Fac Ext Cet Arc Fac Upp Upp War Pro Res Tes Machines Disabled 41 | . . 1 1 3 . . 12 . 4 4 1 12 . . . . . 3 Max in Single Turn 4 | . . 1 1 1 . . 4 . 1 4 1 1 . . . . . 1 Garrison Access 1 | . . . . . . . . . . . . 1 . . . . . . Energy Cycler 1 | . . . . . . . . . 1 . . . . . . . . . Machines Repaired . | . . . . . . . . . . . . . . . . . . . Machines Dismantled . | . . . . . . . . . . . . . . . . . . . Machines Sabotaged . | . . . . . . . . . . . . . . . . . . . Overloaded Fab Kills . | . . . . . . . . . . . . . . . . . . . Hacking | -11 -10 -9 -8 -8 -8 -8 -6 -5 -5 -5 -5 -4 -4 -4 -4 -3 -3 -3 --------- Run | Yrd Mat Mat Mat Sto Rec Scr Fac Fac Ext Cet Arc Fac Upp Upp War Pro Res Tes Machines Accessed 47 | . 1 7 4 4 2 2 4 3 3 . 1 6 . . 2 . 2 6 Terminals 30 | . 1 6 4 4 1 . 2 . 3 . . 2 . . . . 1 6 Fabricators 1 | . . . . . . . . 1 . . . . . . . . . . Repair Stations . | . . . . . . . . . . . . . . . . . . . Recycling Units 6 | . . 1 . . . . . 2 . . . 2 . . . . 1 . Scanalyzers 1 | . . . . . . . . . . . . 1 . . . . . . Garrison Access 3 | . . . . . . . 2 . . . . 1 . . . . . . Total Hacks 163 | . 4 18 17 9 8 2 11 4 21 . 25 14 . . 2 . 10 18 Successful 95 | . 2 11 9 1 7 2 1 3 15 . 25 7 . . 2 . 4 6 Failed 68 | . 2 7 8 8 1 . 10 1 6 . . 7 . . . . 6 12 Catastrophic 11 | . 1 . 2 1 . . 3 . . . . . . . . . . 4 Database Lockouts . | . . . . . . . . . . . . . . . . . . . Manual 65 | . 1 11 13 7 3 . 1 3 4 1 . 7 . . . . 3 11 Terminals 106 | . 4 15 17 9 3 . 5 . 21 . . 7 . . . . 7 18 Fabricators 1 | . . . . . . . . 1 . . . . . . . . . . Repair Stations . | . . . . . . . . . . . . . . . . . . . Recycling Units 12 | . . 3 . . . . . 3 . . . 3 . . . . 3 . Scanalyzers 1 | . . . . . . . . . . . . 1 . . . . . . Garrison Access 9 | . . . . . . . 6 . . . . 3 . . . . . . Terminal Hacks 69 | . 1 7 5 . 6 2 1 . 12 . 25 2 . . 2 . 4 2 Record 39 | . . . . . 5 1 . . 4 . 25 . . . . . 4 . Robot Analysis 1 | . . . . . . . . . 1 . . . . . . . . . Prototype ID Bank 1 | . . 1 . . . . . . . . . . . . . . . . Open Door 2 | . . . . . . . . . . . . . . . 2 . . . Open DSF 1 | . . . . . . . 1 . . . . . . . . . . . Branch Access Points 3 | . . . 1 . . . . . . . . 1 . . . . . 1 Emergency Access Points 1 | . . . 1 . . . . . . . . . . . . . . . Alert Level 1 | . . . . . . . . . 1 . . . . . . . . . Locate Traps 1 | . . . . . . . . . 1 . . . . . . . . . Dispatch Records 2 | . . 1 . . . . . . 1 . . . . . . . . . Security Status 1 | . . . . . . . . . 1 . . . . . . . . . Hauler Manifests 1 | . . 1 . . . . . . . . . . . . . . . . Registered Components 5 | . 1 2 1 . . . . . 1 . . . . . . . . . Zone Layout 9 | . . 2 2 . 1 . . . 2 . . 1 . . . . . 1 Proto ID Catalog 1 | . . . . . . 1 . . . . . . . . . . . . Fabricator Hacks 1 | . . . . . . . . 1 . . . . . . . . . . Network Status 1 | . . . . . . . . 1 . . . . . . . . . . Repair Station Hacks . | . . . . . . . . . . . . . . . . . . . Recycling Unit Hacks 1 | . . 1 . . . . . . . . . . . . . . . . Report Inventory 1 | . . 1 . . . . . . . . . . . . . . . . Scanalyzer . | . . . . . . . . . . . . . . . . . . . Garrison Access Hacks 1 | . . . . . . . . . . . . 1 . . . . . . Seal Access 1 | . . . . . . . . . . . . 1 . . . . . . Unauthorized Hacks 23 | . 1 3 4 1 1 . . 2 3 . . 4 . . . . . 4 Terminals 18 | . 1 3 4 1 1 . . . 3 . . 1 . . . . . 4 Botnet 17 | . 1 3 3 1 1 . . . 3 . . 1 . . . . . 4 Operators 1 | . . . 1 . . . . . . . . . . . . . . . Fabricators . | . . . . . . . . . . . . . . . . . . . Repair Stations . | . . . . . . . . . . . . . . . . . . . Recycling Units 4 | . . . . . . . . 2 . . . 2 . . . . . . Fedlink 4 | . . . . . . . . 2 . . . 2 . . . . . . Scanalyzers 1 | . . . . . . . . . . . . 1 . . . . . . Extract 1 | . . . . . . . . . . . . 1 . . . . . . Garrison Access . | . . . . . . . . . . . . . . . . . . . Data Cores Recovered . | . . . . . . . . . . . . . . . . . . . Used . | . . . . . . . . . . . . . . . . . . . Hacking Detections 33 | . 1 5 4 4 1 . 4 . 3 . . 3 . . . . 2 6 Full Trace Events 13 | . . 3 3 . 1 . 3 . 1 . . . . . . . 1 1 Feedback Events 1 | . . . . . . . 1 . . . . . . . . . . . Corruption 1 | . . . . . . . 1 . . . . . . . . . . . Feedback Blocked . | . . . . . . . . . . . . . . . . . . . Robot Schematics Acquired . | . . . . . . . . . . . . . . . . . . . Robots Built . | . . . . . . . . . . . . . . . . . . . Authchips . | . . . . . . . . . . . . . . . . . . . Time . | . . . . . . . . . . . . . . . . . . . Total Robot Build Rating . | . . . . . . . . . . . . . . . . . . . Part Schematics Acquired 11 | . . . . . . . . . . . . 6 . . . . . 5 Parts Built . | . . . . . . . . . . . . . . . . . . . Authchips . | . . . . . . . . . . . . . . . . . . . Time . | . . . . . . . . . . . . . . . . . . . Total Part Build Rating . | . . . . . . . . . . . . . . . . . . . Parts Repaired . | . . . . . . . . . . . . . . . . . . . Time . | . . . . . . . . . . . . . . . . . . . Parts Recycled . | . . . . . . . . . . . . . . . . . . . Recycled Matter . | . . . . . . . . . . . . . . . . . . . Retrieved Matter . | . . . . . . . . . . . . . . . . . . . Retrieved Components . | . . . . . . . . . . . . . . . . . . . Parts Scanalyzed . | . . . . . . . . . . . . . . . . . . . Part Schematics Acquired . | . . . . . . . . . . . . . . . . . . . Parts Damaged . | . . . . . . . . . . . . . . . . . . . Bothacking | -11 -10 -9 -8 -8 -8 -8 -6 -5 -5 -5 -5 -4 -4 -4 -4 -3 -3 -3 ------------ Run | Yrd Mat Mat Mat Sto Rec Scr Fac Fac Ext Cet Arc Fac Upp Upp War Pro Res Tes Used RIF Installer . | . . . . . . . . . . . . . . . . . . . Robots Hacked . | . . . . . . . . . . . . . . . . . . . Non-combat . | . . . . . . . . . . . . . . . . . . . Combat . | . . . . . . . . . . . . . . . . . . . Robot Hacks Applied . | . . . . . . . . . . . . . . . . . . . Relay Couplers Released . | . . . . . . . . . . . . . . . . . . . Fabnet Peak Effective % . | . . . . . . . . . . . . . . . . . . . Robots Rewired 24 | . . . . . . . . . 24 . . . . . . . . . Allies Hacked . | . . . . . . . . . . . . . . . . . . . Hacks Repelled . | . . . . . . . . . . . . . . . . . . . Allies | -11 -10 -9 -8 -8 -8 -8 -6 -5 -5 -5 -5 -4 -4 -4 -4 -3 -3 -3 -------- Run | Yrd Mat Mat Mat Sto Rec Scr Fac Fac Ext Cet Arc Fac Upp Upp War Pro Res Tes Total Allies 34 | . . . . . . . . . 29 5 . . . . . . . . Largest Group 26 | . . . . . . . . . 26 12 12 10 . . . . . . Highest-Rated Group 818 | . . . . . . . . . 818 790 790 599 . . . . . . Highest-Rated Ally 159 | . . . . . . . . . 159 152 152 96 . . . . . . Total Orders . | . . . . . . . . . . . . . . . . . . . Ally Attacks 245 | . . . . . . . . . 121 15 18 91 . . . . . . Total Damage 8165 | . . . . . . . . . 2319 276 597 4973 . . . . . . Kills 47 | . . . . . . . . . 15 1 2 29 . . . . . . Allies Corrupted . | . . . . . . . . . . . . . . . . . . . Allies Melted . | . . . . . . . . . . . . . . . . . . . Intel | -11 -10 -9 -8 -8 -8 -8 -6 -5 -5 -5 -5 -4 -4 -4 -4 -3 -3 -3 ------- Run | Yrd Mat Mat Mat Sto Rec Scr Fac Fac Ext Cet Arc Fac Upp Upp War Pro Res Tes Active Infowar (turns) 9895 | 9 163 1045 830 1136 130 2280 1943 . 114 . . . . . . 517 823 905 Optics 2245 | . . . . . . . . . . . . . . . . 517 823 905 Sensors 5488 | . . . . 1135 130 2280 1943 . . . . . . . . . . . Terrain 600 | . . . . . . . 486 . 114 . . . . . . . . . Structural 1604 | . . 810 794 . . . . . . . . . . . . . . . Seismic 407 | 9 163 235 . . . . . . . . . . . . . . . . Machine Analysis 1693 | . . . . . . . . . . . . . . . . 156 823 714 ECM 1912 | . . 394 821 697 . . . . . . . . . . . . . . Robot Analysis Total 1 | . . . . . . . . . 1 . . . . . . . . . Derelict Logs Recovered 3 | . . . . . . . . . . . . . 1 2 . . . . Drone Launches . | . . . . . . . . . . . . . . . . . . . Drone Recoveries . | . . . . . . . . . . . . . . . . . . . Exploration | -11 -10 -9 -8 -8 -8 -8 -6 -5 -5 -5 -5 -4 -4 -4 -4 -3 -3 -3 ------------- Run | Yrd Mat Mat Mat Sto Rec Scr Fac Fac Ext Cet Arc Fac Upp Upp War Pro Res Tes Turns Passed 16024 | 227 163 1080 830 1149 130 2280 2135 707 1207 423 324 1000 438 589 976 573 823 970 Spaces Moved 8565 | 106 99 664 491 484 79 1416 885 455 660 221 143 526 242 323 539 310 423 499 Core 141 | 13 . . . . . . . . . . . . . . . . . 128 Treads 4270 | 93 99 149 . 188 79 1313 36 . . 10 143 526 242 323 539 310 206 14 Legs 2791 | . . . . 48 . . 843 455 660 211 . . . . . . 217 357 Wheels 1363 | . . 515 491 248 . 103 6 . . . . . . . . . . . Hover . | . . . . . . . . . . . . . . . . . . . Flight . | . . . . . . . . . . . . . . . . . . . Fastest Speed 50 | 50 160 90 90 120 163 90 120 108 108 120 160 160 160 160 160 160 120 50 Average Speed 143 | 147 160 105 104 152 163 158 164 120 109 140 160 160 160 160 160 160 171 109 Slowest Speed 340 | 160 160 160 120 340 163 163 330 190 186 190 160 160 160 160 160 160 240 260 Overloaded Moves . | . . . . . . . . . . . . . . . . . . . Propulsion Burnouts . | . . . . . . . . . . . . . . . . . . . Robots Hopped . | . . . . . . . . . . . . . . . . . . . Potential Cave-ins 5 | . . . . . . . . . . . . 5 . . . . . . Cave-ins Triggered 1 | . . . . . . . . . . . . . . . . . . 1 Exploration Rate (%) 47 | 5 22 55 44 77 15 91 24 8 74 56 88 16 51 56 88 64 11 55 Regions Visited 18 Branch Regions 11 Pre-discovered Areas 1 | . . . . . . . . 1 . . . . . . . . . . Known Exits Taken 15 | . . . 1 1 1 1 1 1 1 1 1 1 1 1 1 1 1 . Unknown Exits Taken 3 | 1 1 1 . . . . . . . . . . . . . . . . Scrap Searched 11 | . . . . . . 5 . . . . . . . 2 . 4 . . Spaces Dug 25 | . . . . . . . . . . . . 16 . . . . . 9 Terrain Destroyed 494 | . . . 3 2 . . 145 5 8 7 6 30 7 10 149 65 1 56 Melee 6 | . . . . . . . . . . . . . . . . . . 6 Projectile 111 | . . . 3 2 . . 16 1 3 . 6 30 7 10 3 8 1 21 AOE 377 | . . . . . . . 129 4 5 7 . . . . 146 57 . 29 Terrain Rammed . | . . . . . . . . . . . . . . . . . . . Walls Destroyed . | . . . . . . . . . . . . . . . . . . . Machines Disabled . | . . . . . . . . . . . . . . . . . . . Actions | -11 -10 -9 -8 -8 -8 -8 -6 -5 -5 -5 -5 -4 -4 -4 -4 -3 -3 -3 --------- Run | Yrd Mat Mat Mat Sto Rec Scr Fac Fac Ext Cet Arc Fac Upp Upp War Pro Res Tes Total 11087 | 150 103 856 678 777 82 1463 1346 553 1057 328 208 620 265 361 610 356 513 761 Wait 713 | 9 . 32 31 133 . . 188 27 35 55 37 36 . . . . 45 85 Move 8548 | 105 98 663 490 483 78 1415 884 454 660 220 142 525 241 322 538 309 422 499 Hop . | . . . . . . . . . . . . . . . . . . . Pick Up 254 | 14 2 17 23 23 . 19 30 12 28 17 4 10 . 5 8 7 17 18 Fast Attach 22 | . . 2 . 10 . . 1 . 1 . 1 . 1 . . . 4 2 Attach 152 | 7 . 8 8 10 . 6 31 8 14 3 . 2 1 8 8 7 7 24 Detach 22 | . . . . 2 2 1 2 . 2 . . . . 2 3 2 1 5 Swap 90 | . . 8 6 5 . 2 15 3 14 6 6 2 2 1 5 3 6 6 Drop 172 | . 2 17 8 25 2 19 12 1 21 21 3 6 . 2 7 3 7 16 Fire 854 | 15 1 108 110 85 . . 182 43 50 6 14 39 20 21 39 25 4 92 Melee 14 | . . . . . . . . . . . . . . . 2 . . 12 Ram 4 | . . 1 2 1 . . . . . . . . . . . . . . Kick 2 | . . . . . . . 1 . . . . . . . . . . 1 Crush 1 | . . . . . . . . . . . 1 . . . . . . . Escape Stasis 16 | . . . . . . . . 5 10 . . . . . . . . 1 Rewire 223 | . . . . . . 1 . . 222 . . . . . . . . . Trap . | . . . . . . . . . . . . . . . . . . . Miscellaneous . | . . . . . . . . . . . . . . . . . . . Route ------- -11/Scrapyard -10/Materials -9/Materials (discovered 2 exits: *Mat / [*Min]) -8/Materials (discovered 2 exits: *Sto x2) -8/Storage (discovered 2 exits: [*Fac] / *Rec) -8/Recycling -8/Scraptown (discovered 2 exits: *Fac x2) -6/Factory (discovered 2 exits: *Fac / *Low) -5/Factory -5/Extension (discovered 3 exits: *Fac x2 / *Cet) -5/Cetus (discovered 2 exits: *Fac / *Arc) -5/Archives (discovered 3 exits: *Fac / [*Hub x2]) -4/Factory (discovered 3 exits: *Upp x2 / Arm) -4/Upper Caves -4/Upper Caves -4/Warlord -3/Proximity Caves -3/Research (discovered 3 exits: *Res / *Tes x2) -3/Testing History --------- Turn | Location | Event 8 | -11/Scrapyard | Discovered new exit (range 15) 228 | -11/Scrapyard | Entered Materials 316 | -10/Materials | Build established: Mutant 333 | -10/Materials | Discovered new exit (range 12) 391 | -10/Materials | Entered another Materials area 391 | -9/Materials | Evolved 2 slots: Utility x2 1034 | -9/Materials | Lost 3 parts (1p1u1w) 1128 | -9/Materials | Discovered new exit (range 7) 1250 | -9/Materials | Core integrity fell below 50% 1353 | -9/Materials | Discovered new exit (range 7) 1389 | -9/Materials | Build established: Infiltrator-Mutant 1471 | -9/Materials | Entered another Materials area 1471 | -8/Materials | Evolved 2 slots: Propulsion x1, Utility x1 2134 | -8/Materials | Identified exit to Storage 2259 | -8/Materials | Core integrity fell below 50% 2269 | -8/Materials | Garrison activated, responded to threat 2296 | -8/Materials | Lost 3 parts (1p1n1u) 2301 | -8/Materials | Entered Storage 2573 | -8/Storage | Build established: Mutant 3180 | -8/Storage | Discovered new exit (range 9) 3387 | -8/Storage | Core integrity fell below 20% 3444 | -8/Storage | Used back door to open Recycling access 3444 | -8/Storage | Discovered new exit (range 5) 3449 | -8/Storage | Identified exit to Recycling 3450 | -8/Storage | Entered Recycling 3524 | -8/Recycling | Scanned before Scraplab entrance 3562 | -8/Recycling | Entered Scraplab 3576 | -8/Recycling | Discovered new exit (range 2) 3576 | -8/Recycling | Identified exit to Scraptown 3580 | -8/Recycling | Entered Scraptown 3580 | -8/Scraptown | System corruption cleaned by C-Scrubber 3811 | -8/Scraptown | Visited TADAMA 3848 | -8/Scraptown | Visited Spacefarers 3876 | -8/Scraptown | Visited Red Mages 3988 | -8/Scraptown | Build established: Scavenger-Mutant 3995 | -8/Scraptown | Heard Great Nut preacher, LISTEN AND RECITE! 4261 | -8/Scraptown | Visited Fellowship of the Rings 4328 | -8/Scraptown | Visited UFD Registry 4328 | -8/Scraptown | Registered with UFD as "Nanocoil" 4351 | -8/Scraptown | Visited Awakened 4450 | -8/Scraptown | Discovered new exit (range 11) 4753 | -8/Scraptown | Visited IN-MT5's Study 4887 | -8/Scraptown | Visited Science Guys 4954 | -8/Scraptown | Visited Scrapoid Research Area 5054 | -8/Scraptown | Visited Curators Association 5240 | -8/Scraptown | Visited Derelict Rescue Squad 5252 | -8/Scraptown | Found DRS Beacon 5282 | -8/Scraptown | Visited Scrap Suit Storage 5291 | -8/Scraptown | Found Scrap Suit 5359 | -8/Scraptown | Visited A0-MCA Data Center 5369 | -8/Scraptown | Given an A- rating by A0-MCA 5373 | -8/Scraptown | Found A0-MCA's Component Scanner 5397 | -8/Scraptown | Visited Modified Component R&D 5450 | -8/Scraptown | Visited Junk Repository 5538 | -8/Scraptown | Visited DA-N13 Charitable Foundation 5561 | -8/Scraptown | Found DCF Scrap (31 items) 5800 | -8/Scraptown | Met Optimus 5800 | -8/Scraptown | Accepted into 0bPrime 5856 | -8/Scraptown | Discovered new exit (range 5) 5859 | -8/Scraptown | Identified exit to Factory 5860 | -8/Scraptown | Entered Factory 5860 | -6/Factory | Evolved 4 slots: Propulsion x1, Utility x3 5869 | -6/Factory | Identified exit to DSF 6228 | -6/Factory | Build established: Skirmisher 6456 | -6/Factory | Destroyed 7 combat bots 6717 | -6/Factory | Build established: Mutant 6807 | -6/Factory | Garrison activated, responded to threat 6990 | -6/Factory | Lost 3 parts (1p2w) 7033 | -6/Factory | Noticed a derelict Sapper rigging charges 7395 | -6/Factory | System corruption reached 10% 7423 | -6/Factory | Discovered new exit (range 16) 7467 | -6/Factory | Identified exit to Lower Caves 7825 | -6/Factory | Core integrity fell below 50% 7916 | -6/Factory | Lost 4 parts (2p2w) 7960 | -6/Factory | First assault squad dispatched 7970 | -6/Factory | Discovered new exit (range 14) 7994 | -6/Factory | Identified exit to Factory 7995 | -6/Factory | Entered another Factory area 7995 | -5/Factory | Evolved 2 slots: Power x1, Propulsion x1 8013 | -5/Factory | Loaded intel: 8 recycling unit locations 8307 | -5/Factory | Learned location of Protoforge (-2) 8445 | -5/Factory | Discovered new exit (range 15) 8462 | -5/Factory | Identified exit to Extension 8702 | -5/Factory | Entered Extension 8779 | -5/Extension | Energy Cycler disabled 8779 | -5/Extension | Rescued a captive Derelict 8779 | -5/Extension | Rescued a captive Derelict 8780 | -5/Extension | Rescued a captive Derelict 8780 | -5/Extension | Rescued a captive Derelict 8780 | -5/Extension | Rescued a captive Derelict 8780 | -5/Extension | Rescued a captive Derelict 8781 | -5/Extension | Rescued a captive Derelict 8782 | -5/Extension | Rescued a captive Derelict 8800 | -5/Extension | Rescued a captive Derelict 8964 | -5/Extension | Build established: Scavenger-Mutant 8986 | -5/Extension | Lost 3 allies 9136 | -5/Extension | Discovered new exit (range 15) 9149 | -5/Extension | Rescued A7 9509 | -5/Extension | Build established: Commander-Mutant 9735 | -5/Extension | Discovered new exit (range 10) 9737 | -5/Extension | Discovered new exit (range 6) 9748 | -5/Extension | Disrupted transfer network 9778 | -5/Extension | Lost 3 parts (1p2n) 9855 | -5/Extension | Lost 7 allies 9857 | -5/Extension | Identified exit to Cetus 9902 | -5/Extension | First assault squad dispatched 9909 | -5/Extension | Entered Cetus 9909 | -5/Cetus | Accompanied by 7 allies (A7) 9914 | -5/Cetus | Acquired a Cetus Manufacturing Module code from A7 9928 | -5/Cetus | Spotted Cetus Guard 9929 | -5/Cetus | Spotted Cetus Guard 9931 | -5/Cetus | Destroyed Cetus Guard 9932 | -5/Cetus | Spotted Cetus Guard 9932 | -5/Cetus | Spotted Cetus Guard 9934 | -5/Cetus | Destroyed Cetus Guard 9938 | -5/Cetus | Lost 12 allies 9939 | -5/Cetus | Destroyed Cetus Guard 9941 | -5/Cetus | Destroyed Cetus Guard 10050 | -5/Cetus | Started Cetus Manufacturing Module 10065 | -5/Cetus | Discovered new exit (range 15) 10075 | -5/Cetus | Manufactured an Enhanced Grunt 10100 | -5/Cetus | Manufactured an Enhanced Grunt 10103 | -5/Cetus | Spotted Cetus Guard 10103 | -5/Cetus | Spotted Cetus Guard 10107 | -5/Cetus | Spotted Cetus Guard 10112 | -5/Cetus | Destroyed Cetus Guard 10112 | -5/Cetus | Destroyed Cetus Guard 10113 | -5/Cetus | Destroyed Cetus Guard 10115 | -5/Cetus | Spotted Cetus Guard 10115 | -5/Cetus | Allies destroyed Cetus Guard 10121 | -5/Cetus | Discovered new exit (range 15) 10125 | -5/Cetus | Manufactured an Enhanced Grunt 10127 | -5/Cetus | Met Revision 17 10142 | -5/Cetus | System corruption reached 10% 10150 | -5/Cetus | Manufactured an Enhanced Grunt 10175 | -5/Cetus | Manufactured an Enhanced Grunt 10195 | -5/Cetus | Identified exit to Factory 10284 | -5/Cetus | System corruption reached 30% 10297 | -5/Cetus | Identified exit to Archives 10332 | -5/Cetus | Entered Archives 10332 | -5/Archives | Accompanied by 12 allies (A7) 10405 | -5/Archives | Unable to access archive contents 10426 | -5/Archives | Discovered new exit (range 15) 10446 | -5/Archives | Unable to access archive contents 10452 | -5/Archives | Discovered new exit (range 14) 10541 | -5/Archives | Unable to access archive contents 10572 | -5/Archives | Discovered exit to Factory (range 15) 10656 | -5/Archives | Entered Factory 10656 | -4/Factory | Accompanied by 10 allies 10656 | -4/Factory | Evolved 2 slots: Propulsion x1, Utility x1 10658 | -4/Factory | System corruption reached 10% 10840 | -4/Factory | Garrison activated, responded to threat 10890 | -4/Factory | Spotted B-86 Titan 10900 | -4/Factory | Allies destroyed B-86 Titan 10951 | -4/Factory | Lost 5 allies 10951 | -4/Factory | Loaded intel: 8 recycling unit locations 10953 | -4/Factory | Build established: Scavenger-Mutant 11294 | -4/Factory | Identified exit to Upper Caves 11294 | -4/Factory | Identified exit to Armory 11406 | -4/Factory | First assault squad dispatched 11656 | -4/Factory | Entered Upper Caves 11913 | -4/Upper Caves | Learned 12 Research zone layouts 12086 | -4/Upper Caves | Discovered new exit (range 6) 12092 | -4/Upper Caves | Identified exit to Upper Caves 12094 | -4/Upper Caves | Entered another Upper Caves area 12205 | -4/Upper Caves | Attracted the attention of an 0b10 checkpoint 12478 | -4/Upper Caves | Learned Research terminal intel 12547 | -4/Upper Caves | Spotted B-86 Titan 12664 | -4/Upper Caves | Discovered new exit (range 9) 12678 | -4/Upper Caves | Identified exit to Warlord 12683 | -4/Upper Caves | Entered Warlord 12768 | -4/Warlord | System corruption cleaned by Quarantine Array 12885 | -4/Warlord | Rebuked by Warlord 12910 | -4/Warlord | Warlord's base attacked by MAIN.C 12931 | -4/Warlord | Found RU-N14's Throwing Claymores v3 12933 | -4/Warlord | Found RU-N14's Throwing Claymores v3 12936 | -4/Warlord | Found RU-N14's Throwing Claymores v3 12941 | -4/Warlord | Found RU-N14's Throwing Claymores v3 12944 | -4/Warlord | Found RU-N14's Throwing Claymores v3 12948 | -4/Warlord | Found RU-N14's Throwing Claymores v3 13196 | -4/Warlord | Found Vortex Rifle 13199 | -4/Warlord | Found Vortex Rifle 13260 | -4/Warlord | Warlord forces counterattacked 13466 | -4/Warlord | Opened side exit 13500 | -4/Warlord | Spotted Striker 13506 | -4/Warlord | Destroyed Striker 13517 | -4/Warlord | Discovered new exit (range 15) 13585 | -4/Warlord | Warlord base infiltrated, sounded retreat 13596 | -4/Warlord | Destroyed 37 combat bots 13618 | -4/Warlord | Spotted Executioner 13619 | -4/Warlord | Spotted Striker 13622 | -4/Warlord | Destroyed Striker 13622 | -4/Warlord | Destroyed Executioner 13643 | -4/Warlord | Destroyed 18 combat bots 13657 | -4/Warlord | Identified exit to Proximity Caves 13659 | -4/Warlord | Entered Proximity Caves 13935 | -3/Proximity Caves | Attracted the attention of an 0b10 checkpoint 14208 | -3/Proximity Caves | Discovered new exit (range 14) 14227 | -3/Proximity Caves | Identified exit to Research 14231 | -3/Proximity Caves | System corruption reached 30% 14232 | -3/Proximity Caves | Entered Research 14232 | -3/Research | Evolved 2 slots: Utility x1, Weapon x1 14233 | -3/Research | Identified exit to Testing 14235 | -3/Research | Loaded intel: 22 terminal locations 14435 | -3/Research | Revision forces began assault on 0b10 14444 | -3/Research | Met up with Revision 17++ 14463 | -3/Research | Discovered new exit (range 22) 14511 | -3/Research | Identified exit to Research 14747 | -3/Research | Discovered exit to Testing (range 21) 14935 | -3/Research | Research terminal network offline 15055 | -3/Research | Entered Testing 15521 | -3/Testing | Spotted Alpha 7 15612 | -3/Testing | Scanned by Researcher 15625 | -3/Testing | Destroyed Alpha 7 15636 | -3/Testing | Lost 11 parts (1p6n2u2w) 15717 | -3/Testing | System corruption reached 10% 15769 | -3/Testing | Crushed by falling debris 15829 | -3/Testing | Lost 6 parts (1p1n3u1w) 15892 | -3/Testing | System corruption reached 30% 15912 | -3/Testing | Core integrity fell below 50% 15949 | -3/Testing | Lost 15 parts (3p5n4u3w) 15992 | -3/Testing | Core integrity fell below 20% 16025 | -3/Testing | Destroyed by P-80 Master with Gamma Rifle Last Messages --------------- 15956_ Dropped Remote Datajack. 15957_ Acquired Flexi-carbon Leg. 15960_ U-05 Engineer lays Concrete. 15961_ System corrupted: Matter fused (-9). 15962_ U-05 Engineer lays Concrete. 15963_ ALERT: Potential suspicious activity detected, Programmers report to Testing Zone 6B. 15970_ Connecting with Terminal... 15978_ SSRJF,WV:ZNTRYFV#EVBTB%,PAKUGSBJZ 15991_ Slug penetrates Wall. 15991_ Penetrated by Slug. 15992_ Slug penetrates Wall. 15992_ Slug penetrates H-77 Assassin. 15995_ System corrupted: Energy discharge (-38). 16006_ Slug penetrates K-01 Serf. 16008_ Hacking Suite destroyed. 16009_ Slug penetrates Wall. 16009_ Penetrated by Slug. 16014_ CB%XX